bitfinex/quotes_BTCUSD_20241124
["timestamp","ask_amount","ask_price","bid_price","bid_amount"]
[1732450822303,0.129517,97164.0,97163.0,0.51904214]
[1732450822304,0.106517,97164.0,97163.0,0.51904214]
[1732450822532,0.00028919,97185.0,97184.0,0.020579]
[1732450822858,0.00028919,97188.0,97187.0,0.020578]
[1732450822953,0.10304228,97198.0,97190.0,0.020578]
[1732450822954,0.04541919,97191.0,97190.0,0.020578]
[1732450823201,0.16721919,97191.0,97188.0,0.020578]
[1732450823418,0.1218,97190.0,97188.0,0.020578]
[1732450823631,0.14508919,97189.0,97188.0,0.020578]
[1732450823897,0.1448,97189.0,97188.0,0.020578]
[1732450824375,0.14508919,97189.0,97188.0,0.020578]
[1732450824595,0.14508919,97189.0,97188.0,0.11796055]
[1732450825062,0.14508919,97189.0,97188.0,0.11932143]
[1732450825581,0.24710346,97189.0,97188.0,0.09874343]
[1732450825805,0.34999546,97189.0,97188.0,0.09874343]
[1732450826257,0.34999546,97189.0,97184.0,0.020579]
[1732450826258,0.00028919,97185.0,97184.0,0.020579]
[1732450826486,0.14508919,97185.0,97184.0,0.11932243]
[1732450826711,0.14508919,97185.0,97184.0,0.09874343]
[1732450826962,0.14508919,97185.0,97184.0,0.11932243]
[1732450827200,0.14508919,97185.0,97184.0,0.09874343]
[1732450827662,0.14508919,97185.0,97184.0,0.11828026]
[1732450827913,0.14508919,97185.0,97184.0,0.09770126]
[1732450828168,0.39512946,97185.0,97184.0,0.09770126]
[1732450828886,0.39512946,97185.0,97169.0,0.02313564]
[1732450828887,0.102912,97171.0,97169.0,0.00255364]
[1732450829136,0.35075428,97170.0,97169.0,0.00255364]
[1732450829362,0.34972627,97170.0,97169.0,0.09562635]
[1732450829577,0.35001546,97170.0,97169.0,0.09562635]
[1732450829802,0.35001546,97170.0,97169.0,0.09406901]
[1732450830605,0.27013419,97167.0,97166.0,0.09406901]
[1732450830709,0.27013419,97167.0,97165.0,0.00155734]
[1732450830710,0.10320519,97166.0,97165.0,0.00155734]
[1732450830926,0.24813147,97166.0,97165.0,0.10020207]
[1732450831146,0.24710346,97166.0,97165.0,0.10020207]
[1732450831388,0.1448,97166.0,97165.0,0.12078507]
[1732450832303,0.1218,97166.0,97165.0,0.12078507]
[1732450833465,0.24681427,97166.0,97165.0,0.10020207]
[1732450833903,0.24681427,97166.0,97165.0,0.12078507]
[1732450834133,0.24710346,97166.0,97165.0,0.10020207]
[1732450834844,0.24710346,97166.0,97165.0,0.09864473]
[1732450834845,0.39514946,97166.0,97165.0,0.09864473]
[1732450835071,0.29223346,97166.0,97165.0,0.10020207]
[1732450835290,0.39514946,97166.0,97165.0,0.10020207]
[1732450835510,0.29223346,97166.0,97165.0,0.10020207]
[1732450835759,0.60098346,97166.0,97165.0,0.10020207]
[1732450836204,0.60098346,97166.0,97165.0,0.12078507]
[1732450836442,0.60098346,97166.0,97165.0,0.10020207]
[1732450837410,0.60098346,97166.0,97165.0,0.12078507]
[1732450838577,0.60098346,97166.0,97165.0,0.10020207]
[1732450838798,0.60098346,97166.0,97165.0,0.09864473]
[1732450838799,0.70389946,97166.0,97165.0,0.09864473]
[1732450839026,0.70389946,97166.0,97163.0,0.0008585]
[1732450839027,0.00028919,97164.0,97163.0,0.0008585]
[1732450839261,0.00028919,97164.0,97163.0,0.09999368]
[1732450839262,0.70862947,97164.0,97163.0,0.09999368]
[1732450839484,0.70760146,97164.0,97163.0,0.09999368]
[1732450842729,0.60468346,97164.0,97163.0,0.09999368]
[1732450843240,0.58168346,97164.0,97163.0,0.12057668]
[1732450843467,0.58168346,97164.0,97163.0,0.12213402]
[1732450843468,0.43425,97164.0,97163.0,0.12213402]
[1732450843687,0.30875,97164.0,97163.0,0.12213402]
[1732450843909,0.30875,97164.0,97163.0,0.27213402]
[1732450846490,0.30875,97164.0,97163.0,0.45210131]
[1732450846713,0.30875,97164.0,97163.0,0.45209976]
[1732450847613,0.30875,97164.0,97163.0,0.45210917]
[1732450847837,0.30875,97164.0,97163.0,0.3140161]
[1732450848294,0.30875,97164.0,97163.0,0.27213402]
[1732450848768,0.33175,97164.0,97163.0,0.27213402]
[1732450849220,0.41255,97164.0,97163.0,0.27213402]
[1732450851505,0.51456427,97164.0,97163.0,0.27213402]
[1732450852201,0.51456427,97164.0,97163.0,0.10155102]
[1732450852202,0.51485346,97164.0,97163.0,0.10155102]
[1732450852424,0.51485346,97164.0,97163.0,0.12057668]
[1732450853381,0.51485346,97164.0,97163.0,0.12213402]
[1732450853888,0.51656966,97164.0,97163.0,0.12213402]
[1732450854416,0.51656966,97164.0,97163.0,0.10155102]
[1732450854640,0.56169966,97164.0,97163.0,0.09999368]
[1732450855311,0.66461766,97164.0,97163.0,0.09999368]
[1732450855540,0.56169966,97164.0,97163.0,0.09999368]
[1732450855989,0.51656966,97164.0,97163.0,0.09999368]
[1732450856212,0.56169966,97164.0,97163.0,0.12057668]
[1732450856715,0.56169966,97164.0,97163.0,0.09999368]
[1732450857167,0.56169966,97164.0,97163.0,0.12057668]
[1732450857866,0.56169966,97164.0,97163.0,0.09999368]
[1732450858138,0.56169966,97164.0,97163.0,0.12057668]
[1732450858360,0.56169966,97164.0,97163.0,0.09999368]
[1732450859243,0.56169966,97164.0,97163.0,0.12057668]
[1732450861051,0.56157496,97164.0,97163.0,0.12057668]
[1732450863394,0.56157496,97164.0,97163.0,0.12213402]
[1732450863395,0.51644496,97164.0,97163.0,0.12213402]
[1732450863886,0.43564496,97164.0,97163.0,0.12213402]
[1732450864351,0.3333415,97164.0,97163.0,0.12213402]
[1732450864580,0.3103415,97164.0,97163.0,0.12213402]
[1732450864829,0.3103415,97164.0,97163.0,0.27213402]
[1732450865281,0.3103415,97164.0,97163.0,0.410334]
[1732450865509,0.3103415,97164.0,97163.0,0.27213402]
[1732450866013,0.3103415,97164.0,97163.0,0.41035969]
[1732450866258,0.3333415,97164.0,97163.0,0.27213402]
[1732450866748,0.3333415,97164.0,97163.0,0.41035755]
[1732450867221,0.3333415,97164.0,97163.0,0.27213402]
[1732450867711,0.3333415,97164.0,97163.0,0.27057668]
[1732450867936,0.51714496,97164.0,97163.0,0.12057668]
[1732450868152,0.56227496,97164.0,97163.0,0.09999368]
[1732450868589,0.56227496,97164.0,97163.0,0.12213402]
[1732450868807,0.51714496,97164.0,97163.0,0.12057668]
[1732450869065,0.51714496,97164.0,97163.0,0.12213402]
[1732450871988,0.33363069,97164.0,97163.0,0.12213402]
[1732450872207,0.3333415,97164.0,97163.0,0.12213402]
[1732450872667,0.33363069,97164.0,97163.0,0.12213402]
[1732450872905,0.3103415,97164.0,97163.0,0.12213402]
[1732450873423,0.31063069,97164.0,97163.0,0.12213402]
[1732450874342,0.43564496,97164.0,97163.0,0.12213402]
[1732450874565,0.41264496,97164.0,97163.0,0.27213402]
[1732450875553,0.41264496,97164.0,97163.0,0.25155102]
[1732450875925,0.41264496,97164.0,97163.0,0.27213402]
[1732450876263,0.52827496,97164.0,97163.0,0.09999368]
[1732450876926,0.60977496,97164.0,97163.0,0.09999368]
[1732450877411,0.60977496,97164.0,97163.0,0.27057668]
[1732450877844,0.60977496,97164.0,97163.0,0.24999368]
[1732450878284,0.60977496,97164.0,97163.0,0.25155102]
[1732450878528,0.60977496,97164.0,97163.0,0.27213402]
[1732450878753,0.60977496,97164.0,97163.0,0.25155102]
[1732450879246,0.60977496,97164.0,97163.0,0.27213402]
[1732450879467,0.60977496,97164.0,97163.0,0.10155102]
[1732450879942,0.60977496,97164.0,97163.0,0.12213402]
[1732450880391,0.60977496,97164.0,97163.0,0.10155102]
[1732450880614,0.60977496,97164.0,97163.0,0.12213402]
[1732450880615,0.56464496,97164.0,97163.0,0.12213402]
[1732450880845,0.56464496,97164.0,97163.0,0.10155102]
[1732450881133,0.60977496,97164.0,97163.0,0.10155102]
[1732450882030,0.60977496,97164.0,97163.0,0.12213402]
[1732450883430,0.56464496,97164.0,97163.0,0.12213402]
[1732450883653,0.3103415,97164.0,97163.0,0.12213402]
[1732450884081,0.31063069,97164.0,97163.0,0.16401782]
[1732450884295,0.31063069,97164.0,97163.0,0.12213402]
[1732450884766,0.48077496,97164.0,97163.0,0.10155102]
[1732450885458,0.52907496,97164.0,97163.0,0.10155102]
[1732450885899,0.63199296,97164.0,97163.0,0.09999368]
[1732450886123,0.71089296,97164.0,97163.0,0.09999368]
[1732450887274,1.59791184,97164.0,97163.0,0.09999368]
[1732450888416,1.55278184,97164.0,97163.0,0.09999368]
[1732450888701,1.47199384,97164.0,97163.0,0.09999368]
[1732450888952,0.81484496,97164.0,97163.0,0.12213402]
[1732450889180,0.31063069,97164.0,97163.0,0.12213402]
[1732450890403,0.3103415,97164.0,97163.0,0.27213402]
[1732450890633,0.31063069,97164.0,97163.0,0.27213402]
[1732450891048,0.3103415,97164.0,97163.0,0.27213402]
[1732450891339,0.31063069,97164.0,97163.0,0.31403271]
[1732450891764,0.31063069,97164.0,97163.0,0.27213402]
[1732450894042,0.31063069,97164.0,97163.0,0.09874092]
[1732450894249,0.41264496,97164.0,97163.0,0.09874092]
[1732450894469,0.00028919,97162.0,97150.0,1.02846424]
[1732450894702,0.00028919,97162.0,97161.0,0.020584]
[1732450896115,0.3103415,97164.0,97161.0,0.09856346]
[1732450896326,0.3103415,97164.0,97163.0,0.020583]
[1732450896557,0.3103415,97164.0,97163.0,0.11914646]
[1732450909355,0.3103415,97164.0,97163.0,0.15983699]
[1732450910281,0.3103415,97164.0,97163.0,0.16286612]
[1732450910511,0.3103415,97164.0,97163.0,0.31183699]
[1732450911226,0.3103415,97164.0,97163.0,0.29125399]
[1732450911443,0.3103415,97164.0,97163.0,0.506608]
[1732450911919,0.3103415,97164.0,97163.0,0.32212899]
[1732450912823,0.3103415,97164.0,97163.0,0.47699899]
[1732450913276,0.3103415,97164.0,97163.0,0.80948744]
[1732450913506,0.3103415,97164.0,97163.0,0.85278744]
[1732450913732,0.3103415,97164.0,97163.0,0.62231326]
[1732450915827,0.2897575,97164.0,97163.0,0.82202407]
[1732450916057,0.2074215,97164.0,97163.0,0.82202407]
[1732450916519,0.1662535,97164.0,97163.0,0.82202407]
[1732450916747,0.1045015,97164.0,97163.0,0.82202407]
[1732450917410,2e-07,97164.0,97163.0,0.82202407]
[1732450918338,4e-07,97166.0,97165.0,0.53745581]
[1732450918570,4e-07,97166.0,97165.0,0.73322226]
[1732450919248,4e-07,97166.0,97165.0,0.96324216]
[1732450919461,4e-07,97166.0,97165.0,0.73322226]
[1732450920199,4e-07,97166.0,97165.0,0.77652226]
[1732450920686,4e-07,97166.0,97165.0,0.77562226]
[1732450921357,4e-07,97166.0,97165.0,0.76533026]
[1732450922339,4e-07,97184.0,97183.0,0.56955981]
[1732450922570,4e-07,97185.0,97184.0,0.52625981]
[1732450922805,4e-07,97185.0,97184.0,0.72223978]
[1732450923315,4e-07,97185.0,97184.0,0.74523978]
[1732450923590,4e-07,97185.0,97184.0,0.78763978]
[1732450924313,4e-07,97185.0,97184.0,1.06347331]
[1732450924538,4e-07,97185.0,97184.0,0.78763978]
[1732450924775,4e-07,97185.0,97184.0,0.82981642]
[1732450925509,4e-07,97185.0,97184.0,0.80681642]
[1732450925744,0.0006,97222.0,97184.0,0.80681642]
[1732450925745,2e-07,97209.0,97208.0,0.30597]
[1732450925995,2e-07,97209.0,97208.0,0.54897543]
[1732450926233,2e-07,97209.0,97208.0,0.74868624]
[1732450926704,2e-07,97209.0,97208.0,0.7669031]
[1732450927213,2e-07,97209.0,97208.0,0.8089261]
[1732450927463,0.0006,97222.0,97221.0,0.15587]
[1732450927702,0.0006,97222.0,97221.0,0.52824332]
[1732450929129,0.0006,97222.0,97221.0,0.27035905]
[1732450929365,0.0805,97222.0,97221.0,0.31295326]
[1732450930511,0.0805,97222.0,97221.0,0.27035905]
[1732450931244,0.0805,97222.0,97221.0,0.13064505]
[1732450931456,0.0805,97222.0,97221.0,0.28064505]
[1732450937551,0.0822158,97222.0,97221.0,0.28064505]
[1732450938474,0.03602376,97222.0,97221.0,0.28064505]
[1732450939954,0.0017158,97222.0,97221.0,0.38365932]
[1732450940173,0.0017158,97222.0,97221.0,0.53852932]
[1732450940394,0.0472,97236.0,97222.0,0.336727]
[1732450940622,0.0472,97236.0,97222.0,0.53425613]
[1732450940877,0.0017162,97240.0,97222.0,0.53425613]
[1732450940878,0.00200539,97240.0,97222.0,0.53425613]
[1732450941545,0.0807,97239.0,97222.0,0.53425613]
[1732450944037,0.0807,97239.0,97222.0,0.55725613]
[1732450945635,0.0807,97239.0,97238.0,0.030852]
[1732450945888,0.0807,97239.0,97238.0,0.12481226]
[1732450946122,0.0807,97239.0,97238.0,0.27481226]
[1732450947757,0.08057133,97239.0,97238.0,0.27481226]
[1732450948220,0.08057133,97239.0,97238.0,0.31750197]
[1732450949646,0.08057133,97239.0,97238.0,0.31850197]
[1732450949875,0.0017162,97240.0,97239.0,0.335721]
[1732450950093,0.0017162,97240.0,97239.0,0.55581613]
[1732450950341,0.0008582,97256.0,97247.0,0.15487]
[1732450950582,0.00114739,97256.0,97255.0,0.030846]
[1732450950803,0.07684739,97256.0,97255.0,0.27492686]
[1732450951245,0.12334739,97256.0,97255.0,0.27492686]
[1732450953158,0.12334739,97256.0,97255.0,0.12492686]
[1732450953159,0.16937739,97256.0,97255.0,0.12492686]
[1732450953407,0.27139166,97256.0,97255.0,0.09408086]
[1732450954149,0.04631919,97250.0,97249.0,0.030848]
[1732450954376,0.27303346,97250.0,97249.0,0.12733147]
[1732450954827,0.27213346,97250.0,97249.0,0.12733147]
[1732450956428,0.27303346,97250.0,97249.0,0.12733147]
[1732450957628,0.27213346,97250.0,97249.0,0.12733147]
[1732450959780,0.27213346,97250.0,97249.0,0.12712318]
[1732450960028,0.22700346,97250.0,97249.0,0.12712318]
[1732450960277,0.12498919,97250.0,97249.0,0.12712318]
[1732450960963,0.12584689,97250.0,97249.0,0.12712318]
[1732450962182,0.27299116,97250.0,97249.0,0.12712318]
[1732450962400,0.27389116,97250.0,97249.0,0.12712318]
[1732450967083,0.27299116,97250.0,97249.0,0.12712318]
[1732450968619,0.12584689,97250.0,97249.0,0.12712318]
[1732450969057,0.0762577,97250.0,97249.0,0.12712318]
[1732450969292,0.0008577,97250.0,97249.0,0.12712318]
[1732450969817,0.0008577,97250.0,97249.0,0.27815138]
[1732450970020,0.0008577,97250.0,97249.0,0.27712318]
[1732450970237,0.0008577,97250.0,97249.0,0.36914203]
[1732450970453,0.0008577,97250.0,97249.0,0.31878398]
[1732450971344,0.0008577,97250.0,97249.0,0.45681225]
[1732450971557,0.0008577,97250.0,97249.0,0.31878398]
[1732450971798,0.0008577,97250.0,97249.0,0.45681225]
[1732450972264,0.0008577,97250.0,97249.0,0.45682876]
[1732450972514,0.0008577,97250.0,97249.0,0.31878398]
[1732450972754,0.0008577,97250.0,97249.0,0.45682117]
[1732450972963,0.0008577,97250.0,97249.0,0.41081508]
[1732450973387,0.0008577,97250.0,97249.0,0.4568322]
[1732450974283,0.0008577,97250.0,97249.0,0.50284369]
[1732450974998,0.0008577,97250.0,97249.0,0.54885862]
[1732450975230,0.0008577,97250.0,97249.0,0.31878398]
[1732450975918,0.0008577,97250.0,97249.0,0.54880026]
[1732450976167,0.0008577,97250.0,97249.0,0.31878398]
[1732450977505,0.0008577,97250.0,97249.0,0.42079825]
[1732450977721,0.0008577,97250.0,97249.0,0.42179825]
[1732450979037,0.0008577,97250.0,97249.0,0.42079825]
[1732450981383,0.0008577,97250.0,97249.0,0.42179825]
[1732450981629,0.0008577,97250.0,97249.0,0.42200654]
[1732450982053,0.0008577,97250.0,97249.0,0.57687654]
[1732450985190,7e-07,97264.0,97263.0,0.335714]
[1732450985439,7e-07,97264.0,97263.0,0.6529227]
[1732450985647,7e-07,97264.0,97263.0,0.5317158]
[1732450986982,7e-07,97264.0,97263.0,0.5327158]
[1732450987207,7e-07,97264.0,97263.0,0.3768458]
[1732450987706,0.0761007,97264.0,97263.0,0.27483153]
[1732450988351,0.0761007,97264.0,97263.0,0.50476445]
[1732450988571,0.0761007,97264.0,97263.0,0.45876557]
[1732450988808,0.0761007,97264.0,97263.0,0.27483153]
[1732450989051,0.0761007,97264.0,97263.0,0.54660924]
[1732450989272,0.0761007,97264.0,97263.0,0.31667632]
[1732450989502,0.0761007,97264.0,97263.0,0.54653781]
[1732450989768,0.0761007,97264.0,97263.0,0.31667632]
[1732450990199,0.0761007,97264.0,97263.0,0.54653562]
[1732450990409,0.0761007,97264.0,97263.0,0.31667632]
[1732450991495,0.0770007,97264.0,97263.0,0.31667632]
[1732450991705,0.0761007,97264.0,97263.0,0.27483153]
[1732450996687,7e-07,97264.0,97263.0,0.41277302]
[1732450996914,7e-07,97264.0,97263.0,0.27483153]
[1732450997379,7e-07,97264.0,97263.0,0.45875352]
[1732450997593,7e-07,97264.0,97263.0,0.41270174]
[1732450997898,7e-07,97264.0,97263.0,0.27483153]
[1732450998232,7e-07,97264.0,97263.0,0.41270377]
[1732450999534,7e-07,97264.0,97263.0,0.27483153]
[1732451002472,7e-07,97264.0,97263.0,0.5317158]
[1732451002681,7e-07,97264.0,97263.0,0.5327158]
[1732451002895,7e-07,97264.0,97263.0,0.71663779]
[1732451003367,7e-07,97264.0,97263.0,0.5317158]
[1732451003589,7e-07,97264.0,97263.0,0.71563324]
[1732451004290,7e-07,97264.0,97263.0,0.5327158]
[1732451004970,7e-07,97264.0,97263.0,0.5317158]
[1732451005384,7e-07,97264.0,97263.0,0.5327158]
[1732451007231,7e-07,97264.0,97263.0,0.76261829]
[1732451008539,7e-07,97264.0,97263.0,0.5327158]
[1732451008757,0.1233007,97264.0,97263.0,0.27483153]
[1732451008973,0.1233007,97264.0,97263.0,0.41286437]
[1732451009188,0.1233007,97264.0,97263.0,0.27483153]
[1732451009848,0.1233007,97264.0,97263.0,0.36685582]
[1732451010574,0.1233007,97264.0,97263.0,0.36689073]
[1732451010575,0.1242007,97264.0,97263.0,0.36689073]
[1732451010860,0.1233007,97264.0,97263.0,0.27483153]
[1732451012400,0.12448989,97264.0,97263.0,0.12483153]
[1732451013500,0.12448989,97264.0,97263.0,0.09398753]
[1732451014142,0.12448989,97264.0,97263.0,0.12483153]
[1732451014571,0.12358989,97264.0,97263.0,0.12483153]
[1732451015941,0.12304498,97264.0,97263.0,0.12483153]
[1732451016818,0.12394498,97264.0,97263.0,0.12483153]
[1732451021522,0.12480298,97264.0,97263.0,0.12483153]
[1732451021963,0.12390298,97264.0,97263.0,0.12483153]
[1732451022410,0.12480298,97264.0,97263.0,0.12483153]
[1732451023052,0.12390298,97264.0,97263.0,0.12483153]
[1732451024751,0.12480298,97264.0,97263.0,0.12483153]
[1732451028558,0.12390298,97264.0,97263.0,0.12483153]
[1732451029001,0.12480298,97264.0,97263.0,0.12483153]
[1732451029455,0.078758,97264.0,97263.0,0.27483153]
[1732451029676,0.00114719,97264.0,97263.0,0.27483153]
[1732451031075,0.00114719,97264.0,97263.0,0.41304982]
[1732451031306,0.00114719,97264.0,97263.0,0.27483153]
[1732451031546,0.00114719,97264.0,97263.0,0.41304982]
[1732451031765,0.00114719,97264.0,97263.0,0.27483153]
[1732451032214,0.04614719,97264.0,97263.0,0.27483153]
[1732451032907,0.04614719,97264.0,97263.0,0.27654733]
[1732451036116,0.04614719,97264.0,97263.0,0.4147748]
[1732451036333,0.04614719,97264.0,97263.0,0.27654733]
[1732451039785,0.04614719,97264.0,97263.0,0.41479469]
[1732451040447,0.04614719,97264.0,97263.0,0.27654733]
[1732451041315,0.000858,97264.0,97263.0,0.27654733]
[1732451041539,0.00114719,97264.0,97263.0,0.27654733]
[1732451041788,0.000858,97264.0,97263.0,0.46087714]
[1732451042054,0.00114719,97264.0,97263.0,0.27654733]
[1732451042736,0.12324719,97264.0,97263.0,0.27654733]
[1732451042976,0.12324719,97264.0,97263.0,0.41477296]
[1732451043218,0.12324719,97264.0,97263.0,0.27654733]
[1732451045747,0.12414719,97264.0,97263.0,0.27654733]
[1732451046746,0.12414719,97264.0,97263.0,0.09570333]
[1732451046747,0.16927719,97264.0,97263.0,0.09570333]
[1732451047007,0.39710346,97264.0,97263.0,0.09570333]
[1732451048583,0.29429146,97264.0,97263.0,0.09570333]
[1732451048811,0.29429146,97264.0,97263.0,0.12654733]
[1732451049048,0.29429146,97264.0,97263.0,0.09570333]
[1732451050040,0.39710346,97264.0,97263.0,0.09570333]
[1732451053387,0.70554346,97264.0,97263.0,0.09570333]
[1732451053840,0.74731835,97264.0,97263.0,0.09570333]
[1732451054063,0.74731835,97264.0,97236.0,0.0009877]
[1732451054064,0.29954619,97250.0,97236.0,0.0009877]
[1732451054311,1.61480075,97250.0,97241.0,0.0932216]
[1732451054982,1.59561934,97250.0,97241.0,0.0932216]
[1732451055209,1.61479153,97250.0,97241.0,0.0932216]
[1732451055472,1.61479153,97250.0,97249.0,0.0954778]
[1732451055722,1.81579153,97250.0,97249.0,0.0954778]
[1732451055984,1.81479153,97250.0,97249.0,0.0954778]
[1732451056208,1.90698264,97250.0,97249.0,0.0954778]
[1732451056435,1.85662061,97250.0,97249.0,0.0954778]
[1732451057125,1.83744842,97250.0,97249.0,0.0954778]
[1732451057628,1.83844842,97250.0,97249.0,0.0954778]
[1732451057870,1.83844842,97250.0,97224.0,0.0009852]
[1732451057871,0.17215619,97241.0,97224.0,0.0009852]
[1732451058111,0.71103847,97241.0,97214.0,0.030859]
[1732451058355,0.71001046,97241.0,97219.0,0.15]
[1732451058643,0.71001046,97241.0,97221.0,0.030857]
[1732451058845,0.71001046,97241.0,97240.0,0.096546]
[1732451059288,0.71001046,97241.0,97240.0,0.0980816]
[1732451061401,1.22811046,97241.0,97240.0,0.0980816]
[1732451062436,1.42911046,97241.0,97240.0,0.09540664]
[1732451062649,1.42911046,97241.0,97213.0,0.0009818]
[1732451062650,1.4594179,97241.0,97213.0,0.0009818]
[1732451062873,0.25508419,97214.0,97213.0,0.0009818]
[1732451063088,0.0009,97211.0,97210.0,0.09540664]
[1732451063314,0.00118919,97210.0,97205.0,0.030862]
[1732451063555,0.10423147,97210.0,97206.0,0.030862]
[1732451063804,0.41267147,97210.0,97206.0,0.093033]
[1732451064044,0.41164346,97210.0,97206.0,0.093033]
[1732451064269,0.41164346,97210.0,97209.0,0.0947484]
[1732451064985,0.55964346,97210.0,97209.0,0.0947484]
[1732451065235,0.58264346,97210.0,97209.0,0.0947484]
[1732451071344,0.86554346,97210.0,97209.0,0.0947484]
[1732451071557,0.94494029,97210.0,97209.0,0.0947484]
[1732451071774,0.97150921,97210.0,97209.0,0.0947484]
[1732451072016,0.99056458,97210.0,97209.0,0.0947484]
[1732451072260,1.03320922,97210.0,97209.0,0.0947484]
[1732451072489,0.97654347,97210.0,97209.0,0.0947484]
[1732451072764,0.97654347,97210.0,97180.0,0.1009852]
[1732451072765,0.04513,97181.0,97180.0,0.1009852]
[1732451072995,0.04513,97181.0,97180.0,0.2818552]
[1732451072996,0.65714888,97181.0,97180.0,0.2818552]
[1732451073211,0.96558888,97181.0,97180.0,0.37426308]
[1732451073435,0.96468888,97181.0,97180.0,0.37426308]
[1732451073916,0.96558888,97181.0,97180.0,0.37426308]
[1732451074839,1.06789234,97181.0,97180.0,0.34339308]
[1732451075358,1.17079234,97181.0,97180.0,0.34339308]
[1732451075817,1.06789234,97181.0,97180.0,0.34339308]
[1732451076277,1.06789234,97181.0,97180.0,0.37426308]
[1732451076526,0.96587807,97181.0,97180.0,0.37426308]
[1732451076763,0.92074807,97181.0,97180.0,0.50246308]
[1732451076984,0.91984807,97181.0,97180.0,0.50246308]
[1732451078368,0.96497807,97181.0,97180.0,0.50246308]
[1732451078586,0.96497807,97181.0,97180.0,0.37426308]
[1732451078587,0.96587807,97181.0,97180.0,0.37426308]
[1732451078810,0.96587807,97181.0,97180.0,0.34339308]
[1732451079058,1.06789234,97181.0,97180.0,0.19339308]
[1732451079778,1.06789234,97181.0,97180.0,0.22426308]
[1732451080220,1.06789234,97181.0,97180.0,0.22512148]
[1732451080712,1.06699234,97181.0,97180.0,0.22512148]
[1732451080923,1.06789234,97181.0,97180.0,0.22512148]
[1732451082273,0.96497807,97181.0,97180.0,0.22512148]
[1732451082734,0.96587807,97181.0,97180.0,0.22512148]
[1732451083637,0.96497807,97181.0,97180.0,0.22512148]
[1732451084076,0.91984807,97181.0,97180.0,0.22512148]
[1732451084309,0.96497807,97181.0,97180.0,0.22512148]
[1732451084560,0.91984807,97181.0,97180.0,0.22512148]
[1732451084782,0.96497807,97181.0,97180.0,0.22512148]
[1732451084997,0.96587807,97181.0,97180.0,0.22512148]
[1732451085653,0.96587807,97181.0,97180.0,0.19425148]
[1732451086108,0.96587807,97181.0,97180.0,0.22512148]
[1732451087032,1.06789234,97181.0,97180.0,0.19425148]
[1732451087237,1.17079234,97181.0,97180.0,0.19425148]
[1732451087490,1.06789234,97181.0,97180.0,0.19425148]
[1732451087961,1.06789234,97181.0,97180.0,0.09375524]
[1732451088311,0.04631919,97171.0,97170.0,0.15]
[1732451088522,0.35475919,97171.0,97170.0,0.15]
[1732451088759,0.35475919,97171.0,97170.0,0.24375524]
[1732451088987,0.35475919,97171.0,97170.0,0.27462824]
[1732451091724,0.35475919,97171.0,97170.0,0.09375524]
[1732451091979,0.04631919,97169.0,97168.0,0.180874]
[1732451092192,0.35475919,97169.0,97168.0,0.27960235]
[1732451094767,0.35385919,97169.0,97168.0,0.27960235]
[1732451095965,0.35475919,97169.0,97168.0,0.27960235]
[1732451097142,0.35385919,97169.0,97168.0,0.27960235]
[1732451097398,0.30844,97169.0,97168.0,0.27960235]
[1732451097618,0.30844,97169.0,97168.0,0.36010235]
[1732451099399,0.30872919,97169.0,97168.0,0.36010235]
[1732451099648,0.30844,97169.0,97168.0,0.36010235]
[1732451099845,0.30872919,97169.0,97168.0,0.36010235]
[1732451100119,0.30844,97169.0,97168.0,0.36010235]
[1732451100775,0.30872919,97169.0,97168.0,0.36010235]
[1732451101022,0.30934,97169.0,97168.0,0.36010235]
[1732451101273,0.30962919,97169.0,97168.0,0.36010235]
[1732451102700,0.30872919,97169.0,97168.0,0.36010235]
[1732451102944,0.30962919,97169.0,97168.0,0.36010235]
[1732451103161,0.30872919,97169.0,97168.0,0.36010235]
[1732451103388,0.30844,97169.0,97168.0,0.36010235]
[1732451103899,0.30844,97169.0,97168.0,0.41060235]
[1732451104139,0.30844,97169.0,97168.0,0.51261662]
[1732451104379,0.0017174,97181.0,97168.0,0.51261662]
[1732451104380,0.0017174,97181.0,97180.0,0.17136]
[1732451104675,0.0017174,97181.0,97180.0,0.52085097]
[1732451104928,0.0017174,97181.0,97180.0,0.67469223]
[1732451105431,0.0017174,97181.0,97180.0,0.67369223]
[1732451105672,0.0017174,97181.0,97180.0,0.51882223]
[1732451105899,0.0017174,97181.0,97180.0,0.76561746]
[1732451106148,0.0017174,97181.0,97180.0,0.76661746]
[1732451106366,0.00028919,97199.0,97198.0,0.321353]
[1732451106586,0.00028919,97199.0,97198.0,0.4162459]
[1732451106804,0.00028919,97202.0,97201.0,0.041151]
[1732451107039,0.00118919,97202.0,97201.0,0.191151]
[1732451107295,0.00118919,97202.0,97201.0,0.29030422]
[1732451107771,0.0009,97202.0,97201.0,0.29030422]
[1732451108010,0.00118919,97202.0,97201.0,0.29030422]
[1732451108239,0.04513,97207.0,97204.0,0.04115]
[1732451108240,0.00118919,97205.0,97204.0,0.04115]
[1732451109386,0.0009,97205.0,97204.0,0.13762786]
[1732451110116,0.00118919,97205.0,97204.0,0.13762786]
[1732451110370,0.0009,97205.0,97204.0,0.13762786]
[1732451111577,0.00118919,97205.0,97204.0,0.13762786]
[1732451114638,0.0017168,97209.0,97208.0,0.041148]
[1732451114878,0.00200599,97209.0,97208.0,0.289307]
[1732451115137,0.00290599,97209.0,97208.0,0.28827839]
[1732451116315,0.04803599,97209.0,97208.0,0.28827839]
[1732451117066,0.17305026,97209.0,97208.0,0.09713039]
[1732451117327,0.17305026,97209.0,97193.0,0.041155]
[1732451117328,0.04631919,97194.0,97193.0,0.041155]
[1732451117576,0.04631919,97190.0,97189.0,0.0421515]
[1732451117790,0.04631919,97190.0,97189.0,0.13438368]
[1732451118027,0.17133346,97190.0,97189.0,0.09322768]
[1732451118991,0.17133346,97190.0,97173.0,0.09199643]
[1732451118992,0.0009,97177.0,97176.0,0.041162]
[1732451119224,0.04603,97177.0,97176.0,0.13933338]
[1732451120166,0.04631919,97177.0,97176.0,0.13933338]
[1732451120597,0.04631919,97177.0,97176.0,0.09817138]
[1732451120819,0.14833346,97177.0,97176.0,0.09817138]
[1732451121046,0.45615346,97177.0,97176.0,0.09817138]
[1732451121497,0.45615346,97177.0,97168.0,0.0008587]
[1732451121498,0.00118919,97170.0,97168.0,0.0008587]
[1732451121720,0.30900919,97169.0,97168.0,0.0420237]
[1732451121934,0.30990919,97169.0,97168.0,0.13739252]
[1732451122158,0.30900919,97169.0,97168.0,0.28739252]
[1732451122607,0.30990919,97169.0,97168.0,0.28739252]
[1732451126027,0.30900919,97169.0,97168.0,0.28739252]
[1732451127213,0.35413919,97169.0,97168.0,0.28739252]
[1732451127425,0.35401048,97169.0,97168.0,0.28739252]
[1732451128319,0.45692475,97169.0,97168.0,0.28739252]
[1732451133668,0.35401048,97169.0,97168.0,0.28739252]
[1732451134354,0.30888048,97169.0,97168.0,0.28739252]
[1732451134585,0.35401048,97169.0,97168.0,0.28723552]
[1732451134809,0.30888048,97169.0,97168.0,0.28723552]
[1732451135277,0.35401048,97169.0,97168.0,0.28723552]